[Event "Live Chess"]
[Site "Chess.com"]
[Date "2023.05.20"]
[Round "-"]
[White "diana21strabt"]
[Black "manthanit"]
[Result "1-0"]
[WhiteElo "1699"]
[BlackElo "1048"]
[TimeControl "300"]
[EndTime "15:52:14 PDT"]
[Termination "diana21strabt won by resignation"]

1. e4 {[%clk 0:04:57.3]} 1... e6 {[%clk 0:04:57.1]} 2. d4 {[%clk 0:04:55.2]}
2... d5 {[%clk 0:04:56.8]} 3. Nc3 {[%clk 0:04:54.1]} 3... c5 {[%clk 0:04:55.7]}
4. dxc5 {[%clk 0:04:52.5]} 4... Bxc5 {[%clk 0:04:54.6]} 5. Bb5+ {[%clk
0:04:50.6]} 5... Nc6 {[%clk 0:04:50.4]} 6. exd5 {[%clk 0:04:49.2]} 6... exd5
{[%clk 0:04:46.4]} 7. Qxd5 {[%clk 0:04:46.9]} 7... Ne7 {[%clk 0:04:38.9]} 8.
Qxd8+ {[%clk 0:04:43.6]} 8... Kxd8 {[%clk 0:04:38.2]} 9. Bxc6 {[%clk 0:04:41.3]}
9... Nxc6 {[%clk 0:04:35.6]} 10. Nf3 {[%clk 0:04:40.5]} 10... Be6 {[%clk
0:04:35.1]} 11. Bg5+ {[%clk 0:04:37.2]} 11... f6 {[%clk 0:04:32.9]} 12. O-O-O+
{[%clk 0:04:35.8]} 12... Ke7 {[%clk 0:04:31.6]} 13. Be3 {[%clk 0:04:31.8]} 13...
Rad8 {[%clk 0:04:29.8]} 14. Bxc5+ {[%clk 0:04:28.6]} 14... Kf7 {[%clk
0:04:28.8]} 15. Rxd8 {[%clk 0:04:26.5]} 15... Rxd8 {[%clk 0:04:26.8]} 16. Rd1
{[%clk 0:04:25.9]} 16... b6 {[%clk 0:04:21.7]} 17. Rxd8 {[%clk 0:04:22.4]} 17...
Nxd8 {[%clk 0:04:20.6]} 18. Be3 {[%clk 0:04:20.6]} 18... Nc6 {[%clk 0:04:19.6]}
19. Nd4 {[%clk 0:04:18.8]} 19... Nxd4 {[%clk 0:04:18.1]} 20. Bxd4 {[%clk
0:04:17.8]} 20... Ke7 {[%clk 0:04:11.4]} 21. Kd2 {[%clk 0:04:16.1]} 21... Kd6
{[%clk 0:04:10.1]} 22. Ke3 {[%clk 0:04:15.1]} 22... g6 {[%clk 0:04:06.3]} 23.
Bxf6 {[%clk 0:04:12.6]} 23... Bd7 {[%clk 0:03:58.7]} 24. a3 {[%clk 0:04:10.8]}
24... a6 {[%clk 0:03:57.1]} 25. Ne4+ {[%clk 0:04:09.4]} 25... Ke6 {[%clk
0:03:54.4]} 26. Bd8 {[%clk 0:04:08.1]} 26... b5 {[%clk 0:03:52.4]} 27. Kd4
{[%clk 0:04:06.5]} 27... Bc6 {[%clk 0:03:49.6]} 28. Ng5+ {[%clk 0:04:05.2]}
28... Kf5 {[%clk 0:03:45.1]} 29. f3 {[%clk 0:04:00.5]} 29... h6 {[%clk 0:03:38]}
30. Ne4 {[%clk 0:03:59.2]} 30... g5 {[%clk 0:03:31.9]} 31. Be7 {[%clk
0:03:54.8]} 31... g4 {[%clk 0:03:30.6]} 32. fxg4+ {[%clk 0:03:52.1]} 32... Kxg4
{[%clk 0:03:27.1]} 33. h3+ {[%clk 0:03:47.1]} 33... Kf5 {[%clk 0:03:26.1]} 34.
Nd6+ {[%clk 0:03:43.4]} 34... Ke6 {[%clk 0:03:24.6]} 35. Bf8 {[%clk 0:03:40.8]}
35... Bxg2 {[%clk 0:03:22.3]} 36. h4 {[%clk 0:03:39.5]} 36... Bf3 {[%clk
0:02:58.2]} 37. Ne4 {[%clk 0:03:30.3]} 37... Kf5 {[%clk 0:02:51.8]} 38. Nd6+
{[%clk 0:03:22.4]} 38... Ke6 {[%clk 0:02:50.4]} 39. Kc5 {[%clk 0:03:20.8]} 39...
Bd1 {[%clk 0:02:44.2]} 40. Bxh6 {[%clk 0:03:18.3]} 40... Bxc2 {[%clk 0:02:42.9]}
41. Bg5 {[%clk 0:03:17.1]} 41... Bb3 {[%clk 0:02:37.5]} 42. h5 {[%clk
0:03:15.7]} 42... Ba4 {[%clk 0:02:24.5]} 43. h6 {[%clk 0:03:14.1]} 43... Bc2
{[%clk 0:02:23.6]} 44. Nb7 {[%clk 0:03:01]} 44... Be4 {[%clk 0:02:20.1]} 45.
Nd8+ {[%clk 0:02:58.1]} 45... Kd7 {[%clk 0:02:12]} 46. Nf7 {[%clk 0:02:54.2]}
46... Kc7 {[%clk 0:02:05.1]} 47. Kd4 {[%clk 0:02:52.1]} 47... Bg6 {[%clk
0:02:02.2]} 48. Ne5 {[%clk 0:02:50.3]} 48... Bb1 {[%clk 0:01:58.6]} 49. Kd5
{[%clk 0:02:46.7]} 49... Bc2 {[%clk 0:01:55.8]} 50. Ng4 {[%clk 0:02:44.5]} 50...
Bf5 {[%clk 0:01:53.6]} 51. Nf6 {[%clk 0:02:42.3]} 51... Bb1 {[%clk 0:01:51.7]}
52. Ne4 {[%clk 0:02:40.9]} 52... Ba2+ {[%clk 0:01:44.5]} 53. Ke5 {[%clk
0:02:37.8]} 53... Bg8 {[%clk 0:01:38.7]} 54. Nf6 {[%clk 0:02:36.7]} 54... Bf7
{[%clk 0:01:33.8]} 55. h7 {[%clk 0:02:35.1]} 1-0

[Event "Live Chess"]
[Site "Chess.com"]
[Date "2023.05.20"]
[Round "-"]
[White "TheSmoulderingMaster"]
[Black "stevochess11"]
[Result "1-0"]
[WhiteElo "1699"]
[BlackElo "1739"]
[TimeControl "300"]
[EndTime "15:52:21 PDT"]
[Termination "TheSmoulderingMaster won by resignation"]

1. e4 {[%clk 0:04:58.6]} 1... c5 {[%clk 0:04:57.3]} 2. Nf3 {[%clk 0:04:56.9]}
2... g6 {[%clk 0:04:56.2]} 3. d4 {[%clk 0:04:56.1]} 3... cxd4 {[%clk 0:04:55.3]}
4. Nxd4 {[%clk 0:04:55.2]} 4... Nc6 {[%clk 0:04:54.4]} 5. Nc3 {[%clk 0:04:54.2]}
5... Bg7 {[%clk 0:04:53.3]} 6. Be3 {[%clk 0:04:52.6]} 6... Nf6 {[%clk
0:04:52.5]} 7. f3 {[%clk 0:04:51.6]} 7... O-O {[%clk 0:04:51.4]} 8. Qd2 {[%clk
0:04:50.7]} 8... d5 {[%clk 0:04:48.4]} 9. O-O-O {[%clk 0:04:47.6]} 9... Nxd4
{[%clk 0:04:32.4]} 10. Bxd4 {[%clk 0:04:45.7]} 10... dxe4 {[%clk 0:04:30.2]} 11.
Qg5 {[%clk 0:04:41.3]} 11... exf3 {[%clk 0:04:25.9]} 12. Bxf6 {[%clk 0:04:39.1]}
12... Bxf6 {[%clk 0:04:24.3]} 13. Qxf6 {[%clk 0:04:29.4]} 13... Qxd1+ {[%clk
0:04:20.9]} 14. Kxd1 {[%clk 0:04:28.7]} 14... exf6 {[%clk 0:04:19.9]} 15. gxf3
{[%clk 0:04:27.6]} 15... Bf5 {[%clk 0:04:16.4]} 16. h4 {[%clk 0:04:24.7]} 16...
Rad8+ {[%clk 0:04:12.8]} 17. Ke1 {[%clk 0:04:22.7]} 17... Rfe8+ {[%clk
0:04:11.7]} 18. Kf2 {[%clk 0:04:21.5]} 18... Rd2+ {[%clk 0:04:10.5]} 19. Kg3
{[%clk 0:04:19.2]} 19... Rxc2 {[%clk 0:04:07.9]} 20. Nd5 {[%clk 0:04:16.7]}
20... Kg7 {[%clk 0:04:05.3]} 21. h5 {[%clk 0:04:14.5]} 21... Rxb2 {[%clk
0:04:03.4]} 22. h6+ {[%clk 0:04:12]} 22... Kf8 {[%clk 0:04:01.7]} 23. Nxf6
{[%clk 0:04:11.2]} 23... Re6 {[%clk 0:03:57.7]} 24. Nxh7+ {[%clk 0:04:09]} 24...
Kg8 {[%clk 0:03:56.5]} 25. Ng5 {[%clk 0:04:07.9]} 25... Ra6 {[%clk 0:03:41.6]}
26. h7+ {[%clk 0:04:06]} 26... Kh8 {[%clk 0:03:34.3]} 27. Nxf7+ {[%clk
0:04:04.5]} 27... Kg7 {[%clk 0:03:33.4]} 28. h8=Q+ {[%clk 0:03:59.1]} 28... Kxf7
{[%clk 0:03:33.3]} 29. Rh7+ {[%clk 0:03:56.9]} 29... Ke6 {[%clk 0:03:32.2]} 30.
Bc4+ {[%clk 0:03:51.9]} 30... Kd6 {[%clk 0:03:30.2]} 31. Qd8+ {[%clk 0:03:49.7]}
31... Kc5 {[%clk 0:03:27.1]} 32. Rc7+ {[%clk 0:03:47.1]} 32... Kb4 {[%clk
0:03:23.9]} 33. Qe7+ {[%clk 0:03:42.5]} 33... Kc3 {[%clk 0:03:20.3]} 34. Bxa6+
{[%clk 0:03:40.6]} 1-0

[Event "Live Chess"]
[Site "Chess.com"]
[Date "2023.05.20"]
[Round "-"]
[White "Cimon"]
[Black "Brooms1989"]
[Result "1-0"]
[WhiteElo "1846"]
[BlackElo "1079"]
[TimeControl "300"]
[EndTime "15:52:22 PDT"]
[Termination "Cimon won by checkmate"]

1. Nf3 {[%clk 0:04:58.4]} 1... g6 {[%clk 0:04:55.3]} 2. d4 {[%clk 0:04:56.9]}
2... Nf6 {[%clk 0:04:52.1]} 3. c4 {[%clk 0:04:55.3]} 3... Bg7 {[%clk 0:04:50.8]}
4. g3 {[%clk 0:04:54.1]} 4... O-O {[%clk 0:04:49.8]} 5. Bg2 {[%clk 0:04:52.9]}
5... d6 {[%clk 0:04:48.6]} 6. O-O {[%clk 0:04:51.5]} 6... Bg4 {[%clk 0:04:46.2]}
7. Nc3 {[%clk 0:04:48.9]} 7... Qd7 {[%clk 0:04:43.9]} 8. Qc2 {[%clk 0:04:44]}
8... Bh3 {[%clk 0:04:40.3]} 9. e4 {[%clk 0:04:42]} 9... Bxg2 {[%clk 0:04:36.8]}
10. Kxg2 {[%clk 0:04:40.9]} 10... Re8 {[%clk 0:04:31.2]} 11. Bf4 {[%clk
0:04:27.8]} 11... Nh5 {[%clk 0:04:19.2]} 12. Bd2 {[%clk 0:04:25.6]} 12... e5
{[%clk 0:04:15.8]} 13. d5 {[%clk 0:04:20.6]} 13... c6 {[%clk 0:03:54.7]} 14.
Rfd1 {[%clk 0:04:05.5]} 14... cxd5 {[%clk 0:03:40.7]} 15. Nxd5 {[%clk 0:04:01]}
15... Nc6 {[%clk 0:03:35.8]} 16. b4 {[%clk 0:03:56.5]} 16... Nd4 {[%clk
0:03:12.5]} 17. Nxd4 {[%clk 0:03:53.8]} 17... exd4 {[%clk 0:03:12.4]} 18. Rac1
{[%clk 0:03:49.6]} 18... Nf6 {[%clk 0:02:51]} 19. Re1 {[%clk 0:03:34.7]} 19...
Rac8 {[%clk 0:02:38.6]} 20. Qd3 {[%clk 0:03:30.6]} 20... Nxd5 {[%clk 0:02:26]}
21. exd5 {[%clk 0:03:24.4]} 21... Rxe1 {[%clk 0:02:04.5]} 22. Rxe1 {[%clk
0:03:22.1]} 22... Re8 {[%clk 0:02:02.8]} 23. Re4 {[%clk 0:03:09.9]} 23... Rxe4
{[%clk 0:01:58.1]} 24. Qxe4 {[%clk 0:03:08.7]} 24... f5 {[%clk 0:01:44.8]} 25.
Qd3 {[%clk 0:02:57.4]} 25... Qe7 {[%clk 0:01:40.2]} 26. Kf1 {[%clk 0:02:47]}
26... Qe4 {[%clk 0:01:34.4]} 27. Qxe4 {[%clk 0:02:41.2]} 27... fxe4 {[%clk
0:01:34.3]} 28. c5 {[%clk 0:02:35]} 28... dxc5 {[%clk 0:01:27.8]} 29. bxc5
{[%clk 0:02:33.6]} 29... Be5 {[%clk 0:01:17.8]} 30. Bf4 {[%clk 0:02:25.5]} 30...
Bxf4 {[%clk 0:01:11.2]} 31. gxf4 {[%clk 0:02:24.4]} 31... d3 {[%clk 0:01:10.6]}
32. c6 {[%clk 0:02:21.6]} 32... d2 {[%clk 0:00:59.5]} 33. Ke2 {[%clk 0:02:17]}
33... bxc6 {[%clk 0:00:56.4]} 34. dxc6 {[%clk 0:02:15.9]} 34... e3 {[%clk
0:00:53.2]} 35. fxe3 {[%clk 0:02:14.4]} 35... d1=Q+ {[%clk 0:00:51.7]} 36. Kxd1
{[%clk 0:02:13.1]} 36... Kf7 {[%clk 0:00:50.9]} 37. c7 {[%clk 0:02:12]} 37...
Kf6 {[%clk 0:00:49.4]} 38. c8=Q {[%clk 0:02:10.3]} 38... Kg7 {[%clk 0:00:47.8]}
39. Qe6 {[%clk 0:02:07.4]} 39... Kh6 {[%clk 0:00:46.3]} 40. Ke2 {[%clk
0:02:05.6]} 40... a5 {[%clk 0:00:43.4]} 41. Kf3 {[%clk 0:02:04.1]} 41... a4
{[%clk 0:00:43.3]} 42. Kg4 {[%clk 0:02:01.1]} 42... a3 {[%clk 0:00:43.2]} 43. f5
{[%clk 0:01:58.6]} 43... Kg7 {[%clk 0:00:39]} 44. f6+ {[%clk 0:01:57.2]} 44...
Kf8 {[%clk 0:00:38.3]} 45. Qe7+ {[%clk 0:01:55.7]} 45... Kg8 {[%clk 0:00:37.3]}
46. Qg7# {[%clk 0:01:54.3]} 1-0

[Event "Live Chess"]
[Site "Chess.com"]
[Date "2023.05.20"]
[Round "-"]
[White "weibs440"]
[Black "Hussamalhaidar"]
[Result "0-1"]
[WhiteElo "951"]
[BlackElo "1039"]
[TimeControl "300"]
[EndTime "15:52:23 PDT"]
[Termination "Hussamalhaidar won by resignation"]

1. e4 {[%clk 0:04:58.7]} 1... d5 {[%clk 0:04:53.8]} 2. exd5 {[%clk 0:04:57.1]}
2... c6 {[%clk 0:04:52.5]} 3. Nc3 {[%clk 0:04:54]} 3... cxd5 {[%clk 0:04:50.9]}
4. d4 {[%clk 0:04:52.6]} 4... Nf6 {[%clk 0:04:49.1]} 5. Nf3 {[%clk 0:04:50.9]}
5... e6 {[%clk 0:04:48]} 6. Bb5+ {[%clk 0:04:47.2]} 6... Nc6 {[%clk 0:04:45.7]}
7. O-O {[%clk 0:04:44.9]} 7... a6 {[%clk 0:04:44.8]} 8. Bd3 {[%clk 0:04:36.1]}
8... Bb4 {[%clk 0:04:34.3]} 9. a3 {[%clk 0:04:25.6]} 9... Bxc3 {[%clk
0:04:32.1]} 10. bxc3 {[%clk 0:04:25.5]} 10... Na5 {[%clk 0:04:27.8]} 11. Bg5
{[%clk 0:04:14.7]} 11... h6 {[%clk 0:04:24.3]} 12. Bh4 {[%clk 0:04:11.3]} 12...
g5 {[%clk 0:04:22.9]} 13. Bg3 {[%clk 0:04:09.7]} 13... Nc4 {[%clk 0:04:18.2]}
14. h3 {[%clk 0:04:00.8]} 14... Nb2 {[%clk 0:04:13.7]} 15. Be2 {[%clk
0:03:49.8]} 15... Nxd1 {[%clk 0:04:02.6]} 0-1

[Event "Live Chess"]
[Site "Chess.com"]
[Date "2023.05.20"]
[Round "-"]
[White "CameronM1234"]
[Black "Singapourfeuj"]
[Result "0-1"]
[WhiteElo "1095"]
[BlackElo "2203"]
[TimeControl "300"]
[EndTime "15:52:28 PDT"]
[Termination "Singapourfeuj won by resignation"]

1. e4 {[%clk 0:04:56.3]} 1... e6 {[%clk 0:04:59.1]} 2. d3 {[%clk 0:04:54.2]}
2... d5 {[%clk 0:04:58.4]} 3. Nd2 {[%clk 0:04:54.1]} 3... Nf6 {[%clk 0:04:56.3]}
4. e5 {[%clk 0:04:52.7]} 4... Nfd7 {[%clk 0:04:55.2]} 5. d4 {[%clk 0:04:52.6]}
5... c5 {[%clk 0:04:50.5]} 6. c3 {[%clk 0:04:51.6]} 6... Nc6 {[%clk 0:04:49.4]}
7. Ngf3 {[%clk 0:04:49.6]} 7... a6 {[%clk 0:04:47.5]} 8. dxc5 {[%clk 0:04:35.8]}
8... Bxc5 {[%clk 0:04:46.2]} 9. Qe2 {[%clk 0:04:19.4]} 9... b5 {[%clk
0:04:44.2]} 10. g3 {[%clk 0:04:16.9]} 10... Qb6 {[%clk 0:04:42.8]} 11. Bg2
{[%clk 0:04:14.3]} 11... Bb7 {[%clk 0:04:40.6]} 12. O-O {[%clk 0:04:12.7]} 12...
O-O {[%clk 0:04:39.7]} 13. Re1 {[%clk 0:04:08.7]} 13... b4 {[%clk 0:04:38.3]}
14. cxb4 {[%clk 0:04:01.8]} 14... Nxb4 {[%clk 0:04:37]} 15. Nb3 {[%clk
0:03:57.3]} 15... Be7 {[%clk 0:04:35.9]} 16. a3 {[%clk 0:03:46.7]} 16... Nc6
{[%clk 0:04:32.4]} 17. Nbd4 {[%clk 0:03:44.9]} 17... Nxd4 {[%clk 0:04:29.9]} 18.
Nxd4 {[%clk 0:03:44.8]} 18... Qxd4 {[%clk 0:04:28.4]} 19. Be3 {[%clk 0:03:38.8]}
19... Qa4 {[%clk 0:04:27]} 20. Reb1 {[%clk 0:03:21.1]} 20... Rac8 {[%clk
0:04:23.8]} 21. b3 {[%clk 0:03:19.5]} 21... Qb5 {[%clk 0:04:23]} 22. Qb2 {[%clk
0:03:11.9]} 22... Nc5 {[%clk 0:04:14.5]} 23. Bxc5 {[%clk 0:02:57.1]} 23... Bxc5
{[%clk 0:04:10.7]} 24. b4 {[%clk 0:02:56.2]} 24... Be7 {[%clk 0:04:09.4]} 25. a4
{[%clk 0:02:53.3]} 25... Qd3 {[%clk 0:04:05]} 26. b5 {[%clk 0:02:44.3]} 26... a5
{[%clk 0:04:01.2]} 27. Rc1 {[%clk 0:02:32.5]} 27... Bb4 {[%clk 0:03:58.3]} 28.
Bf1 {[%clk 0:02:06.7]} 28... Qe4 {[%clk 0:03:54.5]} 29. Qe2 {[%clk 0:02:00]}
29... d4 {[%clk 0:03:49.4]} 30. Qxe4 {[%clk 0:01:58.7]} 30... Bxe4 {[%clk
0:03:48.3]} 31. Bg2 {[%clk 0:01:45.1]} 31... Bxg2 {[%clk 0:03:46.9]} 32. Kxg2
{[%clk 0:01:45]} 32... f6 {[%clk 0:03:45.1]} 33. Rc6 {[%clk 0:01:42.9]} 33...
Rxc6 {[%clk 0:03:42]} 34. bxc6 {[%clk 0:01:42.2]} 34... Rc8 {[%clk 0:03:41.2]}
35. Rc1 {[%clk 0:01:41.4]} 35... d3 {[%clk 0:03:38.2]} 36. c7 {[%clk 0:01:35.6]}
36... d2 {[%clk 0:03:35.8]} 37. Rc6 {[%clk 0:01:22.7]} 37... d1=Q {[%clk
0:03:33.2]} 38. Rd6 {[%clk 0:01:13.7]} 38... Bxd6 {[%clk 0:03:31.1]} 39. exd6
{[%clk 0:01:12.4]} 39... Qxd6 {[%clk 0:03:30.1]} 0-1

[Event "Live Chess"]
[Site "Chess.com"]
[Date "2023.05.20"]
[Round "-"]
[White "LiamClery2020"]
[Black "Ed_Knox"]
[Result "1-0"]
[WhiteElo "2062"]
[BlackElo "1441"]
[TimeControl "300"]
[EndTime "15:52:30 PDT"]
[Termination "LiamClery2020 won by checkmate"]

1. e4 {[%clk 0:04:59]} 1... d5 {[%clk 0:04:58.8]} 2. exd5 {[%clk 0:04:58.1]}
2... Qxd5 {[%clk 0:04:58.3]} 3. Nc3 {[%clk 0:04:57.6]} 3... Qd8 {[%clk
0:04:56.8]} 4. d4 {[%clk 0:04:56.2]} 4... c6 {[%clk 0:04:53.3]} 5. Bc4 {[%clk
0:04:55.5]} 5... Bf5 {[%clk 0:04:52.1]} 6. Nf3 {[%clk 0:04:53.2]} 6... e6 {[%clk
0:04:51.5]} 7. Bg5 {[%clk 0:04:50.3]} 7... Qc7 {[%clk 0:04:47.6]} 8. Qe2 {[%clk
0:04:46.9]} 8... Be7 {[%clk 0:04:43.9]} 9. Bxe7 {[%clk 0:04:45.6]} 9... Qxe7
{[%clk 0:04:42.3]} 10. O-O {[%clk 0:04:44.6]} 10... Nf6 {[%clk 0:04:41.5]} 11.
Rad1 {[%clk 0:04:42.8]} 11... O-O {[%clk 0:04:40.2]} 12. Bd3 {[%clk 0:04:42.4]}
12... Bxd3 {[%clk 0:04:37]} 13. Qxd3 {[%clk 0:04:42.3]} 13... Nbd7 {[%clk
0:04:35.1]} 14. Rfe1 {[%clk 0:04:39.8]} 14... Rad8 {[%clk 0:04:34.1]} 15. Qe3
{[%clk 0:04:37.6]} 15... Nd5 {[%clk 0:04:31.2]} 16. Nxd5 {[%clk 0:04:36.5]}
16... cxd5 {[%clk 0:04:30.2]} 17. c3 {[%clk 0:04:35.7]} 17... Nf6 {[%clk
0:04:29.2]} 18. Ne5 {[%clk 0:04:34.2]} 18... Nd7 {[%clk 0:04:14.2]} 19. Nd3
{[%clk 0:04:28.8]} 19... Rc8 {[%clk 0:04:11.9]} 20. Qf3 {[%clk 0:04:26.4]} 20...
Qf6 {[%clk 0:04:06.2]} 21. Qg3 {[%clk 0:04:21.6]} 21... Qg6 {[%clk 0:04:00]} 22.
Qe3 {[%clk 0:04:17.5]} 22... Rfe8 {[%clk 0:03:53.7]} 23. Nf4 {[%clk 0:04:16]}
23... Qf6 {[%clk 0:03:50.1]} 24. Nd3 {[%clk 0:04:06.9]} 24... Nb6 {[%clk
0:03:45.1]} 25. Nc5 {[%clk 0:04:01.7]} 25... Rc7 {[%clk 0:03:39.1]} 26. b3
{[%clk 0:03:58.6]} 26... Nd7 {[%clk 0:03:35.7]} 27. Qg3 {[%clk 0:03:56.7]} 27...
Rec8 {[%clk 0:03:31.5]} 28. Nxd7 {[%clk 0:03:53.7]} 28... Rxd7 {[%clk
0:03:30.1]} 29. Re3 {[%clk 0:03:50.8]} 29... Rdc7 {[%clk 0:03:28.9]} 30. Rf3
{[%clk 0:03:47.7]} 30... Qg6 {[%clk 0:03:10.5]} 31. Qd6 {[%clk 0:03:45.1]} 31...
Qc2 {[%clk 0:03:00.2]} 32. Re1 {[%clk 0:03:22.5]} 32... Rxc3 {[%clk 0:02:53.8]}
33. Rxf7 {[%clk 0:02:51]} 33... Qc1 {[%clk 0:02:46]} 34. Qxe6 {[%clk 0:02:33.1]}
34... Qxe1+ {[%clk 0:02:41.2]} 35. Qxe1 {[%clk 0:02:33]} 35... Rc1 {[%clk
0:02:40.4]} 36. Re7 {[%clk 0:02:31.5]} 36... Rxe1+ {[%clk 0:02:35.8]} 37. Rxe1
{[%clk 0:02:31.4]} 37... Rc2 {[%clk 0:02:35]} 38. g3 {[%clk 0:02:28.4]} 38...
Rd2 {[%clk 0:02:29]} 39. Re7 {[%clk 0:02:26.6]} 39... Rxa2 {[%clk 0:02:15.1]}
40. Rxb7 {[%clk 0:02:25.8]} 40... a5 {[%clk 0:02:11.5]} 41. Rd7 {[%clk 0:02:22]}
41... a4 {[%clk 0:02:02.8]} 42. bxa4 {[%clk 0:02:19.6]} 42... Rxa4 {[%clk
0:01:59.8]} 43. Rxd5 {[%clk 0:02:19.5]} 43... Kf7 {[%clk 0:01:57.3]} 44. Kg2
{[%clk 0:02:19]} 44... Ke6 {[%clk 0:01:56.4]} 45. Rd8 {[%clk 0:02:17.4]} 45...
Ra5 {[%clk 0:01:39.3]} 46. d5+ {[%clk 0:02:14.2]} 46... Rxd5 {[%clk 0:01:37.9]}
47. Rxd5 {[%clk 0:02:12.7]} 47... Kxd5 {[%clk 0:01:37.2]} 48. Kf3 {[%clk
0:02:12.2]} 48... Ke5 {[%clk 0:01:34.8]} 49. Kg4 {[%clk 0:02:11.2]} 49... Kf6
{[%clk 0:01:32.8]} 50. h4 {[%clk 0:02:09.5]} 50... Kf7 {[%clk 0:01:23.5]} 51.
Kf5 {[%clk 0:02:06.3]} 51... Ke7 {[%clk 0:01:17.7]} 52. Ke5 {[%clk 0:02:04.3]}
52... Kf7 {[%clk 0:01:15.5]} 53. h5 {[%clk 0:02:02.9]} 53... Ke7 {[%clk
0:01:13.8]} 54. f4 {[%clk 0:02:01]} 54... Kf7 {[%clk 0:01:12.3]} 55. g4 {[%clk
0:01:59.5]} 55... Ke7 {[%clk 0:01:11.1]} 56. g5 {[%clk 0:01:58.7]} 56... Kf7
{[%clk 0:01:08]} 57. f5 {[%clk 0:01:58.2]} 57... Ke7 {[%clk 0:01:00.8]} 58. f6+
{[%clk 0:01:57.1]} 58... gxf6+ {[%clk 0:00:57.8]} 59. gxf6+ {[%clk 0:01:57]}
59... Kf7 {[%clk 0:00:55.3]} 60. Kf5 {[%clk 0:01:56.4]} 60... Kf8 {[%clk
0:00:48.7]} 61. Ke6 {[%clk 0:01:53.6]} 61... h6 {[%clk 0:00:45]} 62. f7 {[%clk
0:01:51.7]} 62... Kg7 {[%clk 0:00:34.9]} 63. Ke7 {[%clk 0:01:50.9]} 63... Kh7
{[%clk 0:00:31.3]} 64. Ke8 {[%clk 0:01:49.6]} 64... Kg7 {[%clk 0:00:26.5]} 65.
f8=Q+ {[%clk 0:01:48.8]} 65... Kh7 {[%clk 0:00:17.1]} 66. Qe7+ {[%clk
0:01:47.5]} 66... Kg8 {[%clk 0:00:15.7]} 67. Kd7 {[%clk 0:01:46.8]} 67... Kh8
{[%clk 0:00:14.7]} 68. Kd6 {[%clk 0:01:46.7]} 68... Kg8 {[%clk 0:00:13.8]} 69.
Kd5 {[%clk 0:01:46.6]} 69... Kh8 {[%clk 0:00:12.5]} 70. Kd4 {[%clk 0:01:46.5]}
70... Kg8 {[%clk 0:00:11.8]} 71. Kd3 {[%clk 0:01:46.4]} 71... Kh8 {[%clk
0:00:11.3]} 72. Kd2 {[%clk 0:01:46.3]} 72... Kg8 {[%clk 0:00:10.9]} 73. Kd1
{[%clk 0:01:46.2]} 73... Kh8 {[%clk 0:00:10.5]} 74. Ke1 {[%clk 0:01:46.1]} 74...
Kg8 {[%clk 0:00:10.2]} 75. Kf1 {[%clk 0:01:46]} 75... Kh8 {[%clk 0:00:10]} 76.
Kg1 {[%clk 0:01:45.9]} 76... Kg8 {[%clk 0:00:09.8]} 77. Kh1 {[%clk 0:01:45.8]}
77... Kh8 {[%clk 0:00:09.6]} 78. Kh2 {[%clk 0:01:45.7]} 78... Kg8 {[%clk
0:00:09.4]} 79. Kh3 {[%clk 0:01:45.6]} 79... Kh8 {[%clk 0:00:09.3]} 80. Kh4
{[%clk 0:01:45.5]} 80... Kg8 {[%clk 0:00:09.2]} 81. Kg4 {[%clk 0:01:45.4]} 81...
Kh8 {[%clk 0:00:09]} 82. Kf4 {[%clk 0:01:45.3]} 82... Kg8 {[%clk 0:00:08.9]} 83.
Kf5 {[%clk 0:01:45.2]} 83... Kh8 {[%clk 0:00:08.8]} 84. Ke5 {[%clk 0:01:45.1]}
84... Kg8 {[%clk 0:00:08.7]} 85. Kd5 {[%clk 0:01:45]} 85... Kh8 {[%clk
0:00:08.6]} 86. Kd6 {[%clk 0:01:44.9]} 86... Kg8 {[%clk 0:00:08.5]} 87. Ke6
{[%clk 0:01:44.8]} 87... Kh8 {[%clk 0:00:08.1]} 88. Kf6 {[%clk 0:01:44.7]} 88...
Kg8 {[%clk 0:00:08]} 89. Qg7# {[%clk 0:01:44.6]} 1-0

[Event "Live Chess"]
[Site "Chess.com"]
[Date "2023.05.20"]
[Round "-"]
[White "smoggyrabbit"]
[Black "HonestJoe1"]
[Result "0-1"]
[WhiteElo "1697"]
[BlackElo "2096"]
[TimeControl "300"]
[EndTime "15:52:52 PDT"]
[Termination "HonestJoe1 won on time"]

1. d4 {[%clk 0:04:57.6]} 1... Nf6 {[%clk 0:04:53.7]} 2. Nf3 {[%clk 0:04:55.7]}
2... c5 {[%clk 0:04:52]} 3. d5 {[%clk 0:04:52.3]} 3... e6 {[%clk 0:04:51.1]} 4.
dxe6 {[%clk 0:04:47]} 4... fxe6 {[%clk 0:04:49.9]} 5. Nc3 {[%clk 0:04:43]} 5...
Be7 {[%clk 0:04:46.6]} 6. e4 {[%clk 0:04:40.6]} 6... d6 {[%clk 0:04:39.7]} 7.
Bc4 {[%clk 0:04:37]} 7... Nc6 {[%clk 0:04:37.7]} 8. O-O {[%clk 0:04:30.7]} 8...
O-O {[%clk 0:04:36.5]} 9. Ng5 {[%clk 0:03:51.1]} 9... Nd4 {[%clk 0:04:30.4]} 10.
Be3 {[%clk 0:03:46]} 10... d5 {[%clk 0:04:26.8]} 11. exd5 {[%clk 0:03:31.1]}
11... exd5 {[%clk 0:04:25.2]} 12. Bd3 {[%clk 0:03:05]} 12... Nf5 {[%clk
0:04:13.8]} 13. Bd2 {[%clk 0:02:49.2]} 13... h6 {[%clk 0:03:56.8]} 14. Nf3
{[%clk 0:02:39.6]} 14... c4 {[%clk 0:03:28]} 15. Bxf5 {[%clk 0:02:31]} 15...
Bxf5 {[%clk 0:03:26.7]} 16. Nd4 {[%clk 0:02:28.6]} 16... Bg4 {[%clk 0:03:18.9]}
17. f3 {[%clk 0:02:25.3]} 17... Bd7 {[%clk 0:03:17.2]} 18. Re1 {[%clk
0:02:19.3]} 18... Bc5 {[%clk 0:03:15.6]} 19. Be3 {[%clk 0:02:17.9]} 19... Qb6
{[%clk 0:03:04.2]} 20. Qd2 {[%clk 0:01:34]} 20... Rae8 {[%clk 0:03:00.7]} 21.
Bf2 {[%clk 0:01:28.2]} 21... Qxb2 {[%clk 0:02:39.5]} 22. Rab1 {[%clk 0:00:38]}
22... Rxe1+ {[%clk 0:02:37.3]} 23. Qxe1 {[%clk 0:00:31.8]} 23... Qa3 {[%clk
0:02:31.8]} 24. Rxb7 {[%clk 0:00:20.2]} 24... Re8 {[%clk 0:02:26.9]} 25. Qd2
{[%clk 0:00:18.4]} 25... Bb4 {[%clk 0:02:20.2]} 26. Rxb4 {[%clk 0:00:10.9]}
26... Qxb4 {[%clk 0:02:18.2]} 27. Be1 {[%clk 0:00:09.3]} 27... Qc5 {[%clk
0:02:06.1]} 28. Kh1 {[%clk 0:00:07.5]} 28... Qe7 {[%clk 0:02:03.1]} 29. Bf2
{[%clk 0:00:06.3]} 29... Qe5 {[%clk 0:01:56.9]} 30. Nde2 {[%clk 0:00:05.1]}
30... Bc6 {[%clk 0:01:31.4]} 31. Bg3 {[%clk 0:00:04.2]} 31... Qe3 {[%clk
0:01:27.1]} 32. Qxe3 {[%clk 0:00:03.1]} 32... Rxe3 {[%clk 0:01:25.6]} 33. Nd1
{[%clk 0:00:01.8]} 33... Rxe2 {[%clk 0:01:23.9]} 0-1